lending/lending_fUSD_20240219
["ID","MTS","AMOUNT","RATE_DAILY","PERIOD"]
[314501909,1708377138939,-771.45,0.00049589,30]
[314501910,1708377138950,-996.35,0.00049589,30]
[314501911,1708377138960,-753.57,0.00049589,30]
[314501912,1708377138972,-500.0,0.00049589,30]
[314501913,1708377138982,-1249.41,0.00049589,30]
[314501914,1708377138992,-519.94485347,0.00049589,30]
[314501915,1708377139001,-609.95,0.00049589,30]
[314501916,1708377139011,-4368.41,0.00049589,30]
[314501917,1708377139021,-3806.98,0.00049589,30]
[314501918,1708377139030,-1205.55,0.00049589,30]
[314501919,1708377139040,-1108.98,0.00049589,30]
[314501920,1708377139050,-500.0,0.00049589,30]
[314501921,1708377139059,-500.0,0.00049589,30]
[314501922,1708377139069,-745.48,0.00049589,30]
[314501923,1708377139079,-442.83939245,0.00049589,30]
[314501924,1708377139088,-500.0,0.00049589,30]
[314501925,1708377139100,-761.98,0.00049589,30]
[314501926,1708377139110,-1070.44,0.00049589,30]
[314501927,1708377139120,-2405.19,0.00049589,30]
[314501928,1708377139129,-1483.04,0.00049589,30]
[314501929,1708377139139,-656.25,0.00049589,30]
[314501930,1708377139149,-500.0,0.00049589,30]
[314501931,1708377139158,-4891.81,0.00049589,30]
[314501932,1708377139168,-703.9,0.00049589,30]
[314501933,1708377139178,-1120.83,0.00049589,30]
[314501934,1708377139187,-500.0,0.00049589,30]
[314501935,1708377139196,-500.0,0.00049589,30]
[314501936,1708377139206,-7009.22,0.00049589,30]
[314501937,1708377139215,-5142.29,0.00049589,30]
[314501938,1708377139225,-583.58,0.00049589,30]
[314501939,1708377139234,-500.0,0.00049589,30]
[314501940,1708377139244,-1149.32,0.00049589,30]
[314501941,1708377139254,-500.0,0.00049589,30]
[314501942,1708377139263,-1818.57,0.00049589,30]
[314501943,1708377139272,-713.94,0.00049589,30]
[314501944,1708377139282,-550.56,0.00049589,30]
[314501945,1708377139292,-2123.12,0.00049589,30]
[314501946,1708377139301,-820.56,0.00049589,30]
[314501947,1708377139311,-4375.89,0.00049589,30]
[314501948,1708377139320,-500.0,0.00049589,30]
[314501949,1708377139330,-500.0,0.00049589,30]
[314501950,1708377139340,-505.89186891,0.00049589,30]
[314501951,1708377139351,-1716.3,0.00049589,30]
[314501952,1708377139361,-1435.17,0.00049589,30]
[314501953,1708377139370,-1857.4,0.00049589,30]
[314501954,1708377139380,-505.27,0.00049589,2]
[314501955,1708377139389,-1170.62,0.00049589,30]
[314501956,1708377139399,-1644.0,0.00049589,30]
[314501957,1708377139409,-9747.42,0.00049589,30]
[314501958,1708377139418,-500.0,0.00049589,30]
[314501959,1708377139428,-699.58,0.00049589,30]
[314501960,1708377139437,-500.0,0.00049589,30]
[314501961,1708377139446,-1379.02,0.00049589,30]
[314501962,1708377139455,-500.0,0.00049589,30]
[314501963,1708377139468,-504.45,0.00049589,30]
[314501964,1708377139477,-1052.13,0.00049589,30]
[314501965,1708377139488,-500.0,0.00049589,30]
[314501966,1708377139497,-2820.04,0.00049589,30]
[314501967,1708377139509,-1201.01,0.00049589,30]
[314501968,1708377139518,-1773.34,0.00049589,30]
[314501969,1708377139528,-500.0,0.00049589,30]
[314501970,1708377139538,-2704.66,0.00049589,30]
[314501971,1708377139548,-1527.67,0.00049589,30]
[314501972,1708377139559,-3977.18,0.00049589,30]
[314501973,1708377139569,-500.0,0.00049589,30]
[314501974,1708377139578,-582.39,0.00049589,30]
[314501975,1708377139587,-825.53,0.00049589,30]
[314501976,1708377139600,-898.27,0.00049589,30]
[314501977,1708377139610,-2898.65,0.00049589,30]
[314501978,1708377139619,-500.0,0.00049589,30]
[314501979,1708377139629,-1746.66,0.00049589,30]
[314501980,1708377139638,-2731.53,0.00049589,30]
[314501981,1708377139648,-968.66,0.00049589,30]
[314501982,1708377139657,-500.0,0.00049589,30]
[314501983,1708377139666,-500.0,0.00049589,30]
[314501984,1708377139676,-500.0,0.00049589,30]
[314501985,1708377139685,-857.25,0.00049589,30]
[314501986,1708377139695,-1486.37,0.00049589,30]
[314501987,1708377139705,-1388.67,0.00049589,30]
[314501988,1708377139714,-1149.63,0.00049589,30]
[314501989,1708377139724,-1224.19,0.00049589,30]
[314501990,1708377139733,-1243.1,0.00049589,30]
[314501991,1708377139744,-740.69,0.00049589,30]
[314501992,1708377139754,-1119.06,0.00049589,30]
[314501993,1708377139764,-500.0,0.00049589,30]
[314501994,1708377139774,-500.0,0.00049589,30]
[314501995,1708377139783,-500.0,0.00049589,30]
[314501996,1708377139793,-995.4,0.00049589,30]
[314501997,1708377139802,-780.29,0.00049589,30]
[314501998,1708377139812,-500.0,0.00049589,30]
[314501999,1708377139822,-1750.39,0.00049589,30]
[314502000,1708377139831,-734.28,0.00049589,30]
[314502001,1708377139841,-1107.14,0.00049589,30]
[314502002,1708377139850,-500.0,0.00049589,30]
[314502003,1708377139859,-8099.08,0.00049589,30]
[314502004,1708377139868,-500.0,0.00049589,30]
[314502005,1708377139878,-518.58,0.00049589,30]
[314502006,1708377139887,-575.48,0.00049589,30]
[314502007,1708377139898,-500.0,0.00049589,30]
[314502008,1708377139907,-571.0,0.00049589,120]
[314502009,1708377139917,-161.25919619,0.00049592,30]
[314502010,1708377139927,-150.0,0.00049598,7]
[314502011,1708377139937,-800.0,0.00049599,30]
[314502012,1708377139947,-150.0,0.00049601,7]
[314502013,1708377139957,-300.0,0.00049605,7]
[314502014,1708377139967,-159.58974604,0.00049606,30]
[314502015,1708377139977,-300.0,0.00049623,7]
[314502016,1708377139987,-193.01034051,0.00049627,7]
[314502017,1708377139996,-1292.63609359,0.00049641,120]
[314502018,1708377140006,-150.0,0.00049652,7]
[314502019,1708377140015,-150.0,0.0004966,7]
[314502020,1708377140025,-206.0,0.00049672,36]
[314502021,1708377140034,-150.0,0.00049693,7]
[314502022,1708377140044,-150.0,0.00049699,7]
[314502023,1708377140054,-300.0,0.000497,7]
[314502024,1708377140064,-2164.4,0.000497,35]
[314502025,1708377140074,-300.0,0.00049712,7]
[314502026,1708377140084,-300.0,0.00049717,7]
[314502027,1708377140094,-300.0,0.00049724,7]
[314502028,1708377140103,-152.51359009,0.00049744,30]
[314502029,1708377140112,-2003.4231,0.0004975,5]
[314502030,1708377140121,-2005.7863,0.0004975,5]
[314502031,1708377140130,-150.0,0.00049753,7]
[314502032,1708377140140,-300.0,0.00049754,7]
[314502033,1708377140150,-150.0,0.0004976,7]
[314502034,1708377140159,-1189.835,0.00049763,2]
[314502035,1708377140169,-150.0,0.00049766,7]
[314502036,1708377140179,-150.0,0.00049771,7]
[314502037,1708377140189,-150.0,0.00049779,7]
[314502038,1708377140199,-300.0,0.0004978,7]
[314502039,1708377140209,-150.0,0.00049786,7]
[314502040,1708377140219,-150.0,0.00049793,7]
[314502041,1708377140229,-300.0,0.00049807,7]
[314502042,1708377140238,-150.0,0.00049814,7]
[314502043,1708377140248,-150.0,0.00049817,7]
[314502044,1708377140257,-1256.3589023,0.00049827,120]
[314502045,1708377140267,-152.51359009,0.00049828,30]
[314502046,1708377140277,-150.0,0.0004983,7]
[314502047,1708377140287,-350.28649824,0.00049846,7]
[314502048,1708377140296,-150.0,0.00049853,7]
[314502049,1708377140306,-2039.93,0.00049862,30]
[314502050,1708377140315,-1605.07,0.00049862,30]
[314502051,1708377140325,-1090.94,0.00049862,30]
[314502052,1708377140334,-1161.62,0.00049862,30]
[314502053,1708377140344,-4690.89,0.00049862,30]
[314502054,1708377140353,-2224.42,0.00049862,30]
[314502055,1708377140362,-1819.91,0.00049862,30]
[314502056,1708377140371,-809.73,0.00049862,30]
[314502057,1708377140381,-590.34,0.00049862,30]
[314502058,1708377140391,-1319.16,0.00049862,30]
[314502059,1708377140400,-886.59,0.00049862,30]
[314502060,1708377140409,-1287.42,0.00049862,30]
[314502061,1708377140419,-1242.47,0.00049862,30]
[314502062,1708377140429,-924.48,0.00049862,30]
[314502063,1708377140438,-2026.93,0.00049862,30]
[314502064,1708377140447,-1086.95,0.00049862,30]
[314502065,1708377140457,-735.92,0.00049862,30]
[314502066,1708377140469,-878.99,0.00049862,30]
[314502067,1708377140479,-1756.54,0.00049862,30]
[314502068,1708377140489,-898.46,0.00049862,30]
[314502069,1708377140499,-500.0,0.00049862,30]
[314502070,1708377140511,-957.91,0.00049862,30]
[314502071,1708377140520,-500.0,0.00049862,30]
[314502072,1708377140530,-1426.52,0.00049862,30]
[314502073,1708377140541,-1623.95,0.00049862,30]
[314502074,1708377140551,-1041.23,0.00049862,30]
[314502075,1708377140560,-1313.08,0.00049862,30]
[314502076,1708377140570,-2030.96,0.00049862,30]
[314502077,1708377140579,-500.0,0.00049862,30]
[314502078,1708377140589,-583.37,0.00049862,30]
[314502079,1708377140599,-500.0,0.00049863,30]
[314502080,1708377140609,-500.0,0.00049863,30]
[314502081,1708377140618,-500.0,0.00049863,30]
[314502082,1708377140627,-500.0,0.00049863,30]
[314502083,1708377140637,-500.0,0.00049863,30]
[314502084,1708377140647,-500.0,0.00049863,30]
[314502085,1708377140656,-602.01,0.00049863,30]
[314502086,1708377140666,-500.0,0.00049863,30]
[314502087,1708377140675,-500.0,0.00049863,30]
[314502088,1708377140900,-512.36,0.00049863,30]
[314502089,1708377140911,-732.56,0.00049863,30]
[314502090,1708377140921,-605.18,0.00049863,30]
[314502091,1708377140931,-500.0,0.00049863,30]
[314502092,1708377140941,-573.89,0.00049863,30]
[314502093,1708377140950,-500.0,0.00049863,30]
[314502094,1708377140960,-263.64477002,0.00049863,30]
[314502095,1708377140970,-500.0,0.00049863,30]
[314502096,1708377140979,-606.28,0.00049863,30]
[314502097,1708377140989,-1049.77,0.00049863,30]
[314502098,1708377140999,-500.0,0.00049863,30]
[314502099,1708377141008,-500.0,0.00049863,30]
[314502100,1708377141018,-284.3,0.00049863,30]
[314502101,1708377141028,-500.0,0.00049863,30]
[314502102,1708377141038,-551.23984988,0.00049863,30]
[314502103,1708377141048,-500.0,0.00049863,30]
[314502104,1708377141058,-500.0,0.00049863,30]
[314502105,1708377141068,-500.0,0.00049863,30]
[314502106,1708377141078,-500.0,0.00049863,30]
[314502107,1708377141087,-544.97,0.00049863,30]
[314502108,1708377141098,-500.0,0.00049863,30]
[314502109,1708377141107,-500.0,0.00049863,30]
[314502110,1708377141116,-500.0,0.00049863,30]
[314502111,1708377141126,-500.0,0.00049863,30]
[314502112,1708377141135,-500.0,0.00049863,30]
[314502113,1708377141145,-500.0,0.00049863,30]
[314502114,1708377141154,-500.0,0.00049863,30]
[314502115,1708377141164,-500.0,0.00049863,30]
[314502116,1708377141173,-500.0,0.00049863,30]
[314502117,1708377141183,-505.06,0.00049863,30]
[314502118,1708377141193,-500.0,0.00049863,30]
[314502119,1708377141202,-1141.6,0.00049863,30]
[314502120,1708377141212,-500.0,0.00049863,30]
[314502121,1708377141222,-500.0,0.00049863,30]
[314502122,1708377141231,-500.0,0.00049863,30]
[314502123,1708377141241,-500.0,0.00049863,30]
[314502124,1708377141250,-500.0,0.00049863,30]
[314502125,1708377141260,-567.74,0.00049863,30]
[314502126,1708377141269,-777.32,0.00049863,2]
[314502127,1708377141280,-500.0,0.00049863,30]
[314502128,1708377141290,-603.14,0.00049863,30]
[314502129,1708377141299,-500.0,0.00049863,30]
[314502130,1708377141309,-386.7,0.00049863,30]
[314502131,1708377141320,-500.0,0.00049863,30]
[314502132,1708377141329,-500.0,0.00049863,30]
[314502133,1708377141339,-750.4,0.00049863,30]
[314502134,1708377141349,-599.04,0.00049863,30]
[314502135,1708377141359,-500.0,0.00049863,30]
[314502136,1708377141368,-500.0,0.00049863,30]
[314502137,1708377141378,-500.0,0.00049863,30]
[314502138,1708377141388,-500.0,0.00049863,30]
[314502139,1708377141397,-500.0,0.00049863,30]
[314502140,1708377141407,-500.0,0.00049863,30]
[314502141,1708377141417,-500.0,0.00049863,30]
[314502142,1708377141426,-690.28,0.00049863,30]
[314502143,1708377141436,-784.44,0.00049863,30]
[314502144,1708377141446,-500.0,0.00049863,30]
[314502145,1708377141456,-376.85,0.00049863,30]
[314502146,1708377141471,-533.46,0.00049863,30]
[314502147,1708377141481,-500.0,0.00049863,30]
[314502148,1708377141491,-712.44,0.00049863,30]
[314502149,1708377141500,-568.95,0.00049863,30]
[314502150,1708377141511,-543.64,0.00049863,30]
[314502151,1708377141521,-500.0,0.00049863,30]
[314502152,1708377141530,-500.0,0.00049863,30]
[314502153,1708377141540,-513.43,0.00049863,30]
[314502154,1708377141549,-1175.74,0.00049863,30]
[314502155,1708377141560,-500.0,0.00049863,30]
[314502156,1708377141569,-500.0,0.00049863,30]
[314502157,1708377141579,-500.0,0.00049863,30]
[314502158,1708377141589,-500.0,0.00049863,30]
[314502159,1708377141600,-500.0,0.00049863,30]
[314502160,1708377141610,-500.0,0.00049863,30]
[314502161,1708377141619,-500.0,0.00049863,30]
[314502162,1708377141629,-500.0,0.00049863,30]
[314502163,1708377141639,-500.0,0.00049863,30]
[314502164,1708377141648,-523.21,0.00049863,30]
[314502165,1708377141657,-521.63,0.00049863,30]
[314502166,1708377141667,-500.0,0.00049863,30]
[314502167,1708377141677,-500.0,0.00049863,30]
[314502168,1708377141686,-500.0,0.00049863,30]
[314502169,1708377141696,-513.88,0.00049863,30]
[314502170,1708377141706,-500.0,0.00049863,30]
[314502171,1708377141716,-500.0,0.00049863,30]
[314502172,1708377141725,-500.0,0.00049863,30]
[314502173,1708377141734,-660.98,0.00049863,30]
[314502174,1708377141744,-500.0,0.00049863,30]
[314502175,1708377141753,-500.0,0.00049863,30]
[314502176,1708377141763,-458.13842049,0.00049863,30]
[314502177,1708377141772,-588.08,0.00049863,30]
[314502178,1708377141782,-500.0,0.00049863,30]
[314502179,1708377141791,-226.12,0.00049863,30]
[314502180,1708377141801,-500.0,0.00049863,30]
[314502181,1708377141810,-555.82,0.00049863,30]
[314502182,1708377141819,-597.62,0.00049863,30]
[314502183,1708377141829,-611.78,0.00049863,30]
[314502184,1708377141839,-247.01,0.00049863,30]
[314502185,1708377141850,-500.0,0.00049863,30]
[314502186,1708377141860,-918.19,0.00049863,30]
[314502187,1708377141870,-578.31,0.00049863,30]
[314502188,1708377141880,-500.0,0.00049863,30]
[314502189,1708377141889,-381.70655849,0.00049863,30]
[314502190,1708377141899,-500.0,0.00049863,30]
[314502191,1708377141908,-527.96,0.00049863,30]
[314502192,1708377141918,-500.0,0.00049863,30]
[314502193,1708377141928,-509.43,0.00049863,30]
[314502194,1708377141938,-500.0,0.00049863,30]
[314502195,1708377141948,-553.98,0.00049863,30]
[314502196,1708377141959,-500.0,0.00049863,30]
[314502197,1708377141969,-500.0,0.00049863,30]
[314502198,1708377141979,-500.0,0.00049863,30]
[314502199,1708377141988,-529.69,0.00049863,30]
[314502200,1708377141998,-500.0,0.00049863,30]
[314502201,1708377142007,-500.0,0.00049863,30]
[314502202,1708377142017,-500.0,0.00049863,30]
[314502203,1708377142026,-500.0,0.00049863,30]
[314502204,1708377142036,-556.74,0.00049863,30]
[314502205,1708377142045,-500.0,0.00049863,30]
[314502206,1708377142055,-692.58,0.00049863,30]
[314502207,1708377142064,-552.5,0.00049863,30]
[314502208,1708377142074,-500.0,0.00049863,30]
[314502209,1708377142084,-500.0,0.00049863,30]
[314502210,1708377142093,-500.0,0.00049863,30]
[314502211,1708377142103,-500.0,0.00049863,30]
[314502212,1708377142112,-591.77,0.00049863,30]
[314502213,1708377142122,-500.0,0.00049863,30]
[314502214,1708377142131,-664.26,0.00049863,30]
[314502215,1708377142141,-500.0,0.00049863,30]
[314502216,1708377142151,-500.0,0.00049863,30]
[314502217,1708377142161,-646.62,0.00049863,30]
[314502218,1708377142170,-635.19,0.00049863,30]
[314502219,1708377142180,-514.25,0.00049863,30]
[314502220,1708377142189,-667.9,0.00049863,30]
[314502221,1708377142199,-538.23,0.00049863,30]
[314502222,1708377142208,-500.0,0.00049863,30]
[314502223,1708377142218,-500.0,0.00049863,30]
[314502224,1708377142231,-516.68,0.00049863,30]
[314502225,1708377142247,-615.42,0.00049863,30]
[314502226,1708377142257,-500.0,0.00049863,30]
[314502227,1708377142267,-500.0,0.00049863,30]
[314502228,1708377142277,-468.19859763,0.00049863,30]
[314502229,1708377142287,-500.0,0.00049863,30]
[314502230,1708377142296,-617.0,0.00049863,30]
[314502231,1708377142306,-544.62,0.00049863,30]
[314502232,1708377142315,-500.0,0.00049863,30]
[314502233,1708377142325,-500.0,0.00049863,30]
[314502234,1708377142335,-500.0,0.00049863,30]
[314502235,1708377142346,-500.0,0.00049863,30]
[314502236,1708377142355,-500.0,0.00049863,30]
[314502237,1708377142365,-500.0,0.00049863,30]
[314502238,1708377142374,-500.0,0.00049863,30]
[314502239,1708377142384,-1052.96,0.00049863,30]
[314502240,1708377142393,-553.52,0.00049863,30]
[314502241,1708377142402,-500.0,0.00049863,30]
[314502242,1708377142412,-566.64,0.00049863,30]
[314502243,1708377142422,-500.0,0.00049863,30]
[314502244,1708377142431,-500.0,0.00049863,30]
[314502245,1708377142442,-500.0,0.00049863,30]
[314502246,1708377142451,-500.0,0.00049863,30]
[314502247,1708377142460,-519.09,0.00049863,30]
[314502248,1708377142474,-772.36,0.00049863,30]
[314502249,1708377142484,-500.0,0.00049863,30]
[314502250,1708377142494,-500.0,0.00049863,30]
[314502251,1708377142504,-500.0,0.00049863,30]
[314502252,1708377142514,-558.08,0.00049863,30]
[314502253,1708377142524,-767.53,0.00049863,30]
[314502254,1708377142533,-500.0,0.00049863,30]
[314502255,1708377142543,-677.61,0.00049863,30]
[314502256,1708377142554,-521.79,0.00049863,30]
[314502257,1708377142565,-500.0,0.00049863,30]
[314502258,1708377142574,-594.14,0.00049863,30]
[314502259,1708377142584,-500.0,0.00049863,30]
[314502260,1708377142594,-781.41,0.00049863,30]
[314502261,1708377142604,-500.0,0.00049863,30]
[314502262,1708377142613,-745.38,0.00049863,30]
[314502263,1708377142622,-500.0,0.00049863,30]
[314502264,1708377142632,-500.0,0.00049863,30]
[314502265,1708377142643,-230.11,0.00049863,30]
[314502266,1708377142653,-500.0,0.00049863,30]
[314502267,1708377142663,-1082.3,0.00049863,30]
[314502268,1708377142672,-500.0,0.00049863,30]
[314502269,1708377142682,-627.94,0.00049863,30]
[314502270,1708377142692,-500.0,0.00049863,30]
[314502271,1708377142702,-505.9,0.00049863,30]
[314502272,1708377142712,-500.0,0.00049863,30]
[314502273,1708377142721,-500.0,0.00049863,30]
[314502274,1708377142731,-529.79,0.00049863,30]
[314502275,1708377142740,-536.14,0.00049863,30]
[314502276,1708377142750,-3104.74,0.00049863,30]
[314502277,1708377142760,-523.82,0.00049863,30]
[314502278,1708377142770,-557.18,0.00049863,30]
[314502279,1708377142779,-500.0,0.00049863,30]
[314502280,1708377142789,-1017.28,0.00049863,30]
[314502281,1708377142799,-2181.83,0.00049863,30]
[314502282,1708377142809,-804.05,0.00049863,30]
[314502283,1708377142818,-500.0,0.00049863,30]
[314502284,1708377142827,-837.03,0.00049863,30]
[314502285,1708377142836,-1389.72,0.00049863,30]
[314502286,1708377142846,-654.5,0.00049863,30]
[314502287,1708377142856,-771.23,0.00049863,30]
[314502288,1708377142865,-500.44,0.00049863,30]
[314502289,1708377142875,-500.0,0.00049863,30]
[314502290,1708377142886,-604.81,0.00049863,30]
[314502291,1708377142896,-500.0,0.00049863,30]
[314502292,1708377142906,-1426.77,0.00049863,30]
[314502293,1708377142915,-527.43,0.00049863,30]
[314502294,1708377142925,-500.0,0.00049863,30]
[314502295,1708377142935,-1745.38,0.00049863,30]
[314502296,1708377142944,-1075.7,0.00049863,30]
[314502297,1708377142954,-1268.71,0.00049863,30]
[314502298,1708377142964,-886.05,0.00049863,30]
[314502299,1708377142975,-899.22,0.00049863,30]
[314502300,1708377142986,-1833.32,0.00049863,30]
[314502301,1708377143005,-2702.11,0.00049863,30]
[314502302,1708377143017,-500.0,0.00049863,30]
[314502303,1708377143028,-10950.38,0.00049863,30]
[314502304,1708377143039,-741.32,0.00049863,30]
[314502305,1708377143050,-3140.24,0.00049863,30]
[314502306,1708377143061,-2678.83,0.00049863,30]
[314502307,1708377143072,-500.0,0.00049863,30]
[314502308,1708377143083,-500.0,0.00049863,30]
[314502309,1708377143096,-1835.49,0.00049863,30]
[314502310,1708377143109,-694.62,0.00049863,30]
[314502311,1708377143119,-503.56,0.00049863,30]
[314502312,1708377143130,-20395.47,0.00049863,30]
[314502313,1708377143141,-2331.98,0.00049863,30]
[314502314,1708377143152,-599.22,0.00049863,30]
[314502315,1708377143163,-789.92,0.00049863,30]
[314502316,1708377143174,-1530.72,0.00049863,30]
[314502317,1708377143185,-780.99,0.00049863,30]
[314502318,1708377143197,-500.0,0.00049863,30]
[314502319,1708377143211,-2037.65,0.00049863,30]
[314502320,1708377143223,-562.3,0.00049863,30]
[314502321,1708377143234,-796.83,0.00049863,30]
[314502322,1708377143245,-1380.27,0.00049863,30]
[314502323,1708377143256,-1316.81,0.00049863,30]
[314502324,1708377143267,-677.42,0.00049863,30]
[314502325,1708377143277,-515.48,0.00049863,30]
[314502326,1708377143289,-3662.65,0.00049863,30]
[314502327,1708377143300,-500.0,0.00049863,30]
[314502328,1708377143314,-500.0,0.00049863,30]
[314502329,1708377143325,-516.11497661,0.00049863,30]
[314502330,1708377143336,-1284.51,0.00049863,30]
[314502331,1708377143352,-679.93,0.00049863,30]
[314502332,1708377143362,-768.65,0.00049863,30]
[314502333,1708377143373,-500.0,0.00049863,30]
[314502334,1708377143384,-500.0,0.00049863,30]
[314502335,1708377143477,-5456.49,0.00049863,30]
[314502336,1708377143488,-357.13697455,0.00049863,30]
[314502337,1708377143498,-177.41850834,0.00049863,30]
[314502338,1708377143510,-2893.51,0.00049863,30]
[314502339,1708377143520,-2571.27,0.00049863,30]
[314502340,1708377143530,-826.56,0.00049863,30]
[314502341,1708377143540,-411.0325524,0.00049863,30]
[314502342,1708377143550,-1599.05,0.00049863,30]
[314502343,1708377143560,-500.0,0.00049863,30]
[314502344,1708377143570,-500.0,0.00049863,30]
[314502345,1708377143580,-721.27,0.00049863,30]
[314502346,1708377143590,-2039.63,0.00049863,30]
[314502347,1708377143604,-2095.21,0.00049863,30]
[314502348,1708377143614,-727.3,0.00049863,30]
[314502349,1708377143624,-500.0,0.00049863,30]
[314502350,1708377143634,-500.0,0.00049863,30]
[314502351,1708377143645,-846.21,0.00049863,30]
[314502352,1708377143655,-1638.65,0.00049863,30]
[314502353,1708377143665,-1395.59,0.00049863,30]
[314502354,1708377143675,-586.56,0.00049863,30]
[314502355,1708377143685,-1364.92,0.00049863,30]
[314502356,1708377143696,-1945.02,0.00049863,30]
[314502357,1708377143706,-628.31,0.00049863,30]
[314502358,1708377143716,-500.0,0.00049863,30]
[314502359,1708377143726,-500.0,0.00049863,30]
[314502360,1708377143737,-2020.6,0.00049863,30]
[314502361,1708377143747,-500.0,0.00049863,30]
[314502362,1708377143757,-500.0,0.00049863,30]
[314502363,1708377143767,-500.0,0.00049863,30]
[314502364,1708377143776,-2298.57,0.00049863,30]
[314502365,1708377143787,-500.0,0.00049863,30]
[314502366,1708377143796,-500.0,0.00049863,30]
[314502367,1708377143806,-1046.88,0.00049863,30]
[314502368,1708377143816,-1430.94,0.00049863,30]
[314502369,1708377143826,-500.0,0.00049863,30]
[314502370,1708377143835,-500.0,0.00049863,30]
[314502371,1708377143848,-990.31,0.00049863,30]
[314502372,1708377143858,-941.5,0.00049863,30]
[314502373,1708377143868,-11885.76,0.00049863,30]
[314502374,1708377143878,-500.0,0.00049863,30]
[314502375,1708377143888,-8772.79,0.00049863,30]
[314502376,1708377143898,-2710.69,0.00049863,30]
[314502377,1708377143908,-1007.39,0.00049863,30]
[314502378,1708377143918,-500.0,0.00049863,30]
[314502379,1708377143928,-500.0,0.00049863,30]
[314502380,1708377143938,-877.27,0.00049863,30]
[314502381,1708377143947,-1539.61,0.00049863,30]
[314502382,1708377143957,-740.11,0.00049863,30]
[314502383,1708377143966,-774.82,0.00049863,30]
[314502384,1708377143975,-500.0,0.00049863,30]
[314502385,1708377143985,-530.62,0.00049863,30]
[314502386,1708377143995,-500.0,0.00049863,30]
[314502387,1708377144004,-1422.42,0.00049863,30]
[314502388,1708377144014,-500.0,0.00049863,30]
[314502389,1708377144023,-500.0,0.00049863,30]
[314502390,1708377144033,-2610.19,0.00049863,30]
[314502391,1708377144043,-1255.72,0.00049863,30]
[314502392,1708377144053,-1016.32,0.00049863,30]
[314502393,1708377144063,-1233.1,0.00049863,30]
[314502394,1708377144072,-500.0,0.00049863,30]
[314502395,1708377144081,-5037.62,0.00049863,30]
[314502396,1708377144090,-1545.99,0.00049863,30]
[314502397,1708377144102,-771.45,0.00049863,30]
[314502398,1708377144111,-996.35,0.00049863,30]
[314502399,1708377144121,-753.57,0.00049863,30]
[314502400,1708377144130,-500.0,0.00049863,30]
[314502401,1708377144140,-1249.41,0.00049863,30]
[314502402,1708377144149,-609.95,0.00049863,30]
[314502403,1708377144159,-4368.41,0.00049863,30]
[314502404,1708377144169,-3806.98,0.00049863,30]
[314502405,1708377144179,-1205.55,0.00049863,30]
[314502406,1708377144188,-1108.98,0.00049863,30]
[314502407,1708377144198,-200.61007012,0.00049863,30]
[314502408,1708377144207,-500.0,0.00049863,30]